[Event "Satka Autumn 2017"]
[Site "Satka"]
[Date "2017.09.14"]
[Round "3"]
[White "Surovtseva, Alisa"]
[Black "Nasyrova, Ekaterina"]
[Result "0-1"]
[ECO "C48"]
[WhiteElo "1623"]
[BlackElo "2017"]
[Annotator "NA RC"]
[PlyCount "96"]
[EventDate "2017.??.??"]
[EventType "swiss"]
[EventCountry "RUS"]
[SourceTitle "playchess.com"]
[Source "ChessBase"]
[SourceQuality "1"]
[TimeControl "5400+30"]

{[%evp 8,74,20,21,9,11,24,7,35,17,36,21,48,18,32767,14,20,32767,32767,32767,-31,-22,-4,-5,-4,-17,0,-4,-10,32767,32767,32767,32767,32767,-181,-165,-161,-181,-144,32767,32767,32767,32767,32767,32767,-164,-169,32767,32767,32767,-157,32767,32767,32767,32767,32767,32767,-305,32767,-297,-307,-308,-378,-323,-409,-435,-347,-324,-497]} 1. e4 {[%emt 0:00:00]} e5 {[%emt 0:00:16]} 2. Nf3 {[%emt 0:00:00]} Nc6 {[%emt 0:00:14]} 3. Nc3 {[%emt 0:00:00]} Nf6 {[%emt 0:00:15]} 4. Bb5 {[%emt 0:00:00]} Bd6 {[%emt 0:00:18]} 5. O-O {[%emt 0:00:00]} O-O {[%emt 0:01:16]} 6. d3 {[%emt 0:00:11]} h6 {[%emt 0:00:38]} 7. a3 {[%emt 0:00:24]} a6 {[%emt 0:00:54]} 8. Ba4 {[%emt 0:00:25]} b5 {[%emt 0:00:27]} 9. Bb3 {[%emt 0:00:20]} Bb7 {[%emt 0:06:07]} 10. Ne2 {[%emt 0:05:54] C78: Ruy Lopez: Archangelsk and Möller Defences} (10. Nd5 Re8 11. Bd2 Nd4 12. Nxd4 exd4 13. Qf3 Nxd5 14. exd5 Qh4 15. g3 Qh3 16. Rae1 Re5 17. Rxe5 Bxe5 {½-½ (59) Grandelius,N (2623)-Fressinet,L (2712) Oslo 2015}) 10... Re8 {[%emt 0:11:58]} 11. Ng3 {[%emt 0:04:08]} Bf8 {[%emt 0:08:19] LiveBook: 11 Games} 12. Bd2 {[%emt 0:22:15]} d5 {[%emt 0:08:44]} 13. Bc3 {[%emt 0:04:14]} dxe4 $146 {[%emt 0:09:04]} ({Find the theoretical novelty and annotate with similar games:} 13... Qd7 14. Re1 d4 15. Bd2 Nd8 16. Nh4 Ne6 17. Rf1 Nf4 18. Bxf4 exf4 {1-0 (29) Ruiz Sanchez,O (2381)-Arencibia Rodriguez,W (2500) Havana 2010}) 14. dxe4 {[%emt 0:01:48]} Nd4 {[%emt 0:01:13]} 15. Nxd4 {[%emt 0:08:21]} exd4 {[%emt 0:00:14]} 16. Qxd4 {[%emt 0:01:09]} Qxd4 {[%emt 0:04:09]} 17. Bxd4 {[%emt 0:00:05]} Nxe4 {[%emt 0:00:09]} 18. Nxe4 {[%emt 0:01:39]} Bxe4 {[%emt 0:01:23]} 19. Rad1 {[%emt 0:01:58]} c5 {[%emt 0:01:04]} 20. Be3 {[%emt 0:04:29]} c4 {[%emt 0:00:14]} 21. Ba2 {[%emt 0:00:13]} Bxc2 {[%emt 0:00:22]} 22. Rd2 {[%emt 0:01:03]} Bf5 {[%emt 0:02:55]} 23. Bb1 {[%emt 0:04:32]} Bxb1 {[%emt 0:02:53]} 24. Rxb1 {[%emt 0:00:07]} Rad8 {[%emt 0:00:15]} 25. Rbd1 {[%emt 0:00:48]} Rxd2 {[%emt 0:00:28]} 26. Bxd2 {[%emt 0:01:47]} Rd8 {[%emt 0:00:45]} 27. Kf1 {[%emt 0:00:29]} Be7 {[%emt 0:01:16]} 28. Ke2 {[%emt 0:00:42]} Bf6 {[%emt 0:00:22]} 29. Rb1 {[%emt 0:00:41]} Rd3 {[%emt 0:00:55]} 30. a4 {[%emt 0:02:27]} Rb3 {[%emt 0:00:16]} 31. axb5 {[%emt 0:01:49]} axb5 {[%emt 0:00:11]} 32. Bc1 {[%emt 0:00:28]} c3 {[%emt 0:00:23]} 33. Kd1 {[%emt 0:01:25]} cxb2 {[%emt 0:00:32]} 34. Bd2 {[%emt 0:01:15]} Ra3 {[%emt 0:01:16]} 35. Kc2 {[%emt 0:00:38]} Ra1 {[%emt 0:00:32]} 36. Bb4 {[%emt 0:00:33]} Kh7 {[%emt 0:00:18]} 37. Bd2 $19 {[%emt 0:01:03]} Kg6 {[%emt 0:00:12]} 38. g4 {[%emt 0:00:55]} Bd4 {[%emt 0:01:04]} 39. f4 {[%emt 0:00:34]} Kf6 {[%emt 0:00:48]} 40. h4 {[%emt 0:00:29]} Ke6 {[%emt 0:01:06]} 41. h5 {[%emt 0:00:54]} Kd5 {[%emt 0:00:23]} 42. g5 {[%emt 0:00:59]} Kc4 {[%emt 0:00:47]} 43. g6 {[%emt 0:03:07]} fxg6 {[%emt 0:00:45]} 44. hxg6 {[%emt 0:00:32]} b4 {[%emt 0:03:03]} 45. Rxb2 {[%emt 0:00:15]} b3+ {[%emt 0:00:12]} 46. Rxb3 {[%emt 0:00:08]} Ra2+ {[%emt 0:00:06]} 47. Kb1 {[%emt 0:05:01]} Kxb3 {[%emt 0:00:11]} 48. f5 {[%emt 0:00:40]} Ra1# {[%emt 0:00:09]} 0-1

[Event "Satka Autumn 2017"]
[Site "Satka"]
[Date "2017.09.15"]
[Round "4"]
[White "Schepetkova, Margarita"]
[Black "Charochkina, Daria"]
[Result "1-0"]
[ECO "A80"]
[WhiteElo "2266"]
[BlackElo "2339"]
[Annotator "RC"]
[PlyCount "91"]
[EventDate "2017.??.??"]
[EventType "swiss"]
[EventCountry "RUS"]
[SourceTitle "playchess.com"]
[Source "ChessBase"]
[SourceQuality "1"]
[TimeControl "5400+30"]

1. d4 {[%emt 0:00:00]} f5 {[%emt 0:00:03]} 2. Nc3 {[%emt 0:00:02]} Nf6 {[%emt 0:00:04]} 3. Bg5 {[%emt 0:00:16]} c6 {[%emt 0:00:02]} 4. Qd3 {[%emt 0:05:03]} d5 {[%emt 0:00:10]} 5. f3 {[%emt 0:00:26]} b5 {[%emt 0:00:04]} 6. a3 {[%emt 0:00:05]} e6 {[%emt 0:00:16]} 7. e4 {[%emt 0:01:11]} Be7 {[%emt 0:00:58]} 8. e5 {[%emt 0:00:51]} Nfd7 {[%emt 0:01:03]} 9. Bxe7 {[%emt 0:00:06]} Qxe7 {[%emt 0:00:05]} 10. f4 {[%emt 0:00:15]} Nb6 {[%emt 0:01:56]} 11. b3 {[%emt 0:04:18]} a6 {[%emt 0:12:58]} 12. Nf3 {[%emt 0:02:28]} c5 {[%emt 0:00:05]} 13. dxc5 {[%emt 0:02:09]} Qxc5 {[%emt 0:00:03]} 14. Qd4 {[%emt 0:01:39]} Qc7 {[%emt 0:00:39]} 15. Bd3 {[%emt 0:15:46]} O-O {[%emt 0:08:47]} 16. Ne2 {[%emt 0:06:25]} Bb7 {[%emt 0:02:51]} 17. O-O {[%emt 0:02:30]} N8d7 {[%emt 0:01:04]} 18. Qe3 {[%emt 0:01:24]} Rfe8 {[%emt 0:01:51]} 19. Ned4 {[%emt 0:01:26]} Nc5 {[%emt 0:00:57]} 20. Kh1 {[%emt 0:02:58]} Rac8 {[%emt 0:00:19]} 21. Rg1 {[%emt 0:00:45]} Nxd3 {[%emt 0:22:50]} 22. cxd3 {[%emt 0:00:48]} h6 {[%emt 0:14:24]} 23. Rgc1 {[%emt 0:03:30]} Qd8 {[%emt 0:00:43]} 24. Rxc8 {[%emt 0:01:34]} Qxc8 {[%emt 0:05:12]} 25. Rc1 {[%emt 0:01:07]} Qd7 {[%emt 0:00:19]} 26. Qd2 {[%emt 0:02:48]} Rc8 {[%emt 0:01:34]} 27. h3 {[%emt 0:05:02]} Kf7 {[%emt 0:03:17]} 28. Kg1 {[%emt 0:03:43]} Rc7 {[%emt 0:01:52]} 29. Kf2 {[%emt 0:06:20]} Qc8 {[%emt 0:05:57]} 30. Rxc7+ {[%emt 0:00:50]} Qxc7 {[%emt 0:00:04]} 31. Qc2 {[%emt 0:01:03]} Qe7 {[%emt 0:01:02]} 32. Qc1 {[%emt 0:00:30]} Ke8 {[%emt 0:00:52]} 33. g3 {[%emt 0:01:16]} Kf7 {[%emt 0:02:01]} 34. b4 {[%emt 0:05:49]} Na4 {[%emt 0:00:16]} 35. g4 {[%emt 0:03:45]} g6 {[%emt 0:06:04]} 36. g5 {[%emt 0:00:19]} h5 {[%emt 0:00:22]} 37. Nd2 {[%emt 0:00:38]} a5 {[%emt 0:01:58]} 38. Nxb5 {[%emt 0:02:56]} d4 {[%emt 0:00:18]} 39. Nd6+ {[%emt 0:01:56]} Kg7 {[%emt 0:00:24]} 40. Qc4 {[%emt 0:00:41]} Nc3 {[%emt 0:04:08]} 41. Qxd4 {[%emt 0:00:53]} Nd1+ {[%emt 0:00:42]} 42. Ke1 {[%emt 0:00:20]} Bd5 {[%emt 0:01:43]} 43. Kxd1 {[%emt 0:00:23]} axb4 {[%emt 0:00:01]} 44. axb4 {[%emt 0:01:22]} Kh7 {[%emt 0:00:11]} 45. Qc5 {[%emt 0:00:35]} Qd7 {[%emt 0:00:09]} 46. b5 {[%emt 0:00:18]} 1-0

[Event "Satka Autumn 2017"]
[Site "Satka"]
[Date "2017.09.15"]
[Round "4"]
[White "Lomakina, Galja"]
[Black "Nosacheva, Mariya"]
[Result "1/2-1/2"]
[ECO "A05"]
[WhiteElo "1962"]
[BlackElo "2077"]
[Annotator "NA RC"]
[PlyCount "84"]
[EventDate "2017.??.??"]
[EventType "swiss"]
[EventCountry "RUS"]
[SourceTitle "playchess.com"]
[Source "ChessBase"]
[SourceQuality "1"]
[TimeControl "5400+30"]

{[%evp 8,84,29,18,30,31,25,18,15,14,25,10,8,12,6,0,26,38,109,104,114,120,148,147,149,116,153,128,145,106,100,83,134,114,127,71,81,81,101,106,109,-112,-108,-77,-79,-124,-120,-124,-13,-21,-5,-37,-19,-29,-36,-97,-113,-116,-152,-149,-125,-187,-37,-418,-469,-434,-305,-358,-324,-489,0,-412,-136,-152,-162,-185,-170,-169,-42]} 1. d3 {[%emt 0:00:00]} Nf6 {[%emt 0:00:13]} 2. g3 {[%emt 0:00:00]} e6 {[%emt 0:03:03]} 3. Nf3 {[%emt 0:00:00]} b5 {[%emt 0:00:06]} 4. Bg2 {[%emt 0:00:11]} Bb7 {[%emt 0:00:06]} 5. O-O {[%emt 0:00:21]} d6 {[%emt 0:01:17]} 6. e4 {[%emt 0:00:29]} Nbd7 {[%emt 0:00:09]} 7. b3 {[%emt 0:05:36]} c5 {[%emt 0:00:42]} 8. Bb2 {[%emt 0:00:48]} Be7 {[%emt 0:00:43]} 9. Nbd2 {[%emt 0:01:05]} O-O {[%emt 0:01:35]} 10. Qe2 {[%emt 0:00:31] LiveBook: 5 Games A05: Réti Opening: 1 Nf3 Nf6} Qc7 {[%emt 0:04:47]} 11. h3 $146 {[%emt 0:04:42]} ({Predecessor:} 11. c3 a5 12. a4 bxa4 13. bxa4 Nb6 14. e5 dxe5 15. Qxe5 Qd7 16. Qf4 Nfd5 17. Qg4 f5 {0-1 (32) Zhou,Y (2326)-Williams,S (2493) London 2010}) 11... c4 {[%emt 0:14:11]} 12. bxc4 {[%emt 0:02:38]} Rfc8 {[%emt 0:00:33]} (12... bxc4 $11 13. Nxc4 Rab8) 13. Nd4 {[%emt 0:07:04]} bxc4 {[%emt 0:01:40]} 14. Nxc4 {[%emt 0:01:11]} Ne5 {[%emt 0:17:44]} 15. Ne3 {[%emt 0:02:54]} Rab8 {[%emt 0:02:41]} 16. Rfb1 {[%emt 0:04:15]} Qa5 {[%emt 0:06:22]} 17. f4 {[%emt 0:07:12]} Nc6 {[%emt 0:01:01]} 18. Nxc6 {[%emt 0:07:26]} Bxc6 {[%emt 0:01:27]} 19. Kh2 {[%emt 0:01:49]} Qa4 {[%emt 0:09:21]} 20. c4 {[%emt 0:06:03]} Nd7 {[%emt 0:05:34]} 21. f5 {[%emt 0:07:49]} e5 {[%emt 0:03:10]} 22. h4 {[%emt 0:07:05]} Nc5 {[%emt 0:02:18]} 23. Bh3 {[%emt 0:05:08]} Rc7 {[%emt 0:02:38]} 24. Bxe5 $2 {[%emt 0:09:41]} (24. Bc3 $16 {stays on course.} Rcb7 25. Rxb7 Rxb7 26. Qd2) 24... Rxb1 {[%emt 0:02:27]} 25. Rxb1 {[%emt 0:00:11]} dxe5 {[%emt 0:01:10]} 26. Rb8+ {[%emt 0:00:05]} Bf8 {[%emt 0:01:42]} 27. f6 {[%emt 0:02:17]} g6 {[%emt 0:02:19]} (27... Rb7 $17 28. Rd8 Be8) 28. Ng4 {[%emt 0:06:47]} Be8 {[%emt 0:01:07]} 29. Nxe5 {[%emt 0:00:38]} Rb7 {[%emt 0:03:06]} 30. Rxb7 {[%emt 0:02:12]} Nxb7 {[%emt 0:00:02]} 31. d4 {[%emt 0:00:21]} Qa6 {[%emt 0:00:36]} 32. Bc8 {[%emt 0:01:18] [#]} Qb6 $1 {[%emt 0:01:12]} 33. Bxb7 {[%emt 0:01:34]} Qxb7 {[%emt 0:00:14]} 34. c5 {[%emt 0:00:38] [#]} h5 $2 {[%emt 0:00:27]} (34... Qb4 $1 $19 {[%cal Rb4d4]} 35. Nf3 Bh6) 35. Nc4 $2 {[%emt 0:03:17]} (35. Qc2 $1 $15) 35... Qa6 {[%emt 0:00:29]} 36. Qc2 {[%emt 0:01:01]} Qxf6 {[%emt 0:00:11]} 37. Ne5 $1 $11 {[%emt 0:00:16]} Qe6 {[%emt 0:02:01]} 38. Qc4 $2 {[%emt 0:00:53]} (38. c6 {kämpft weiter.}) 38... Qf6 $2 {[%emt 0:01:01]} (38... Bg7 $19 39. Qxe6 fxe6) 39. c6 $2 {[%emt 0:00:46]} Bd6 $2 {[%emt 0:00:46]} (39... Qf2+ $19 {is more deadly.} 40. Kh1 (40. Kh3 $2 Bd6 $19) 40... Qxg3) 40. c7 {[%emt 0:01:19]} Qf2+ {[%emt 0:00:31]} 41. Kh1 {[%emt 0:00:41] [#]} Bxc7 $19 {[%emt 0:01:20]} 42. Qxc7 {[%emt 0:00:21]} Qf1+ {[%emt 0:00:05]} ({Worse is} 42... Qxg3 43. Qd8 $15) (42... Qxd4 $19 43. Qb8 Qxe4+ 44. Kh2 Qa4) 1/2-1/2

[Event "Satka Autumn 2017"]
[Site "Satka"]
[Date "2017.09.15"]
[Round "4"]
[White "Mukhina, Jana"]
[Black "Pogorelskikh, Sofia"]
[Result "0-1"]
[ECO "B52"]
[WhiteElo "1923"]
[BlackElo "2023"]
[Annotator "NA RC"]
[PlyCount "128"]
[EventDate "2017.??.??"]
[EventType "swiss"]
[EventCountry "RUS"]
[SourceTitle "playchess.com"]
[Source "ChessBase"]
[SourceQuality "1"]
[TimeControl "5400+30"]

{[%evp 8,128,26,16,33,27,27,-8,13,20,14,15,9,8,15,5,22,0,11,10,0,0,0,2,37,0,0,0,0,-22,0,-27,-30,-37,-43,-52,-48,-45,-33,-50,-51,-90,-98,-99,-86,-79,-97,-110,-109,-110,-107,-112,-116,-118,-91,-104,-92,-108,-84,-156,-145,-160,-145,-159,-140,-136,-131,-142,-138,-159,-152,-172,-136,-140,-147,-128,-135,-157,-136,-156,-158,-177,-140,-146,-158,-212,-238,-305,-356,-354,-257,-468,-418,-494,-396,-550,-446,-394,-477,-471,-503,-704,-591,-600,-908,-806,-697,-1247,-2262,-2871,-12839,-5616,-29971,-12844,-12845,-804,-8258,-29982,-29984,-29985,-29986,-29988,-29987]} 1. e4 {[%emt 0:00:00]} c5 {[%emt 0:00:06]} 2. Nf3 {[%emt 0:00:00]} d6 {[%emt 0:00:07]} 3. Bb5+ {[%emt 0:00:00]} Bd7 {[%emt 0:00:06]} 4. Bxd7+ {[%emt 0:00:00]} Qxd7 {[%emt 0:00:05]} 5. O-O {[%emt 0:00:00]} Nf6 {[%emt 0:00:12]} 6. Qe2 {[%emt 0:00:03]} Nc6 {[%emt 0:00:16]} 7. Rd1 {[%emt 0:00:01] B52: Sicilian: Moscow Variation with 3...Bd7} (7. c3 e6 8. d4 cxd4 9. cxd4 d5 10. e5 Ne4 11. Nbd2 Nxd2 12. Bxd2 Be7 13. Rac1 O-O 14. g3 Rfc8 15. h4 Bd8 16. h5 h6 17. Kg2 Ne7 18. b3 Rxc1 19. Rxc1 Rc8 20. Rxc8 Qxc8 21. Qd3 Nc6 22. Ne1 Be7 23. Nc2 a6 24. g4 Qf8 25. Qc3 Bd8 26. Qd3 Be7 27. Qc3 Bd8 28. Qd3 {½-½ (28) Laznicka,V (2664)-Kovalyov,A (2641) Linares 2017}) 7... Rc8 {[%emt 0:00:36]} (7... g5 $5) 8. c3 {[%emt 0:00:11]} e6 {[%emt 0:00:15]} 9. d4 {[%emt 0:00:16]} cxd4 {[%emt 0:00:07]} 10. Bg5 {[%emt 0:00:03]} (10. cxd4 d5 11. e5 Ne4 12. Be3 Be7 13. Ne1 f6 14. f3 Ng5 15. Bxg5 fxg5 {0-1 (29) Mukhina,J (2125)-Pogorelskikh,S (1721) Satka 2016}) 10... Be7 {[%emt 0:21:11]} 11. cxd4 {[%emt 0:00:05]} h6 {[%emt 0:02:14] LiveBook: 8 Games} 12. Bxf6 {[%emt 0:01:28]} Bxf6 {[%emt 0:01:31]} 13. e5 {[%emt 0:00:00]} Be7 {[%emt 0:01:18]} 14. exd6 {[%emt 0:00:02]} Qxd6 {[%emt 0:01:20]} 15. Nc3 $146 {[%emt 0:00:01]} Nb4 {[%emt 0:14:34]} 16. d5 {[%emt 0:24:39]} (16. a3 $5 {[%cal Ra3b4]} Nd5 17. Qb5+ Qc6 18. Qxc6+ bxc6 19. Rac1 $14) 16... Nxd5 {[%emt 0:00:32]} 17. Nxd5 {[%emt 0:00:11]} exd5 {[%emt 0:00:11]} 18. Nd4 {[%emt 0:22:15]} Kf8 {[%emt 0:03:43]} ({Don't blunder} 18... O-O $2 19. Nf5 $18) 19. Rd3 {[%emt 0:09:45]} (19. Nf5 $5 {[%cal Rf5d6]} Qe6 20. Qd3 $11) 19... g6 {[%emt 0:05:45]} 20. Rad1 {[%emt 0:12:38]} Bf6 {[%emt 0:04:49]} 21. Nb5 {[%emt 0:09:25]} Qe6 {[%emt 0:02:57]} 22. Qd2 {[%emt 0:02:38]} a6 {[%emt 0:06:37]} 23. Nd4 {[%emt 0:00:56]} Qb6 {[%emt 0:02:02]} 24. g3 {[%emt 0:02:24]} Kg7 {[%emt 0:01:51]} 25. Rb3 {[%emt 0:02:19]} Qc7 {[%emt 0:04:08]} 26. Ne2 {[%emt 0:01:05]} Rhd8 {[%emt 0:01:22]} 27. Nf4 {[%emt 0:02:18]} d4 {[%emt 0:01:31]} 28. Rd3 {[%emt 0:03:00]} Rd6 {[%emt 0:03:49]} 29. Ne2 {[%emt 0:01:03]} Rcd8 {[%emt 0:00:50]} 30. h4 {[%emt 0:01:09]} h5 {[%emt 0:01:21]} 31. Qf4 {[%emt 0:00:46]} Qd7 {[%emt 0:01:43]} 32. Nc3 {[%emt 0:01:03]} Qg4 {[%emt 0:06:34]} 33. Ne4 {[%emt 0:02:30]} (33. Qxg4 $142 hxg4 34. Ne4) 33... Qxf4 {[%emt 0:00:23]} 34. gxf4 {[%emt 0:00:02]} Rb6 {[%emt 0:05:02]} ({Not} 34... Bxh4 35. Nxd6 Rxd6 36. Rxd4 $14) 35. Nxf6 {[%emt 0:00:21]} Kxf6 {[%emt 0:00:10]} 36. b3 {[%emt 0:00:54]} Rbd6 {[%emt 0:00:51]} 37. Kg2 {[%emt 0:00:13]} Kf5 {[%emt 0:00:23]} 38. Kf3 {[%emt 0:00:33]} Rd5 {[%emt 0:00:38]} 39. R1d2 {[%emt 0:00:59]} f6 {[%emt 0:01:10]} 40. Rd1 {[%emt 0:02:10]} R8d7 {[%emt 0:02:09]} 41. R1d2 {[%emt 0:01:14]} Ra5 {[%emt 0:01:20]} 42. a4 {[%emt 0:01:29]} Rc5 {[%emt 0:01:29]} 43. Rd1 {[%emt 0:00:36]} b6 {[%emt 0:01:35]} 44. Kg3 {[%emt 0:00:33]} a5 {[%emt 0:00:49]} 45. Kf3 {[%emt 0:00:08]} Rd6 {[%emt 0:02:18]} 46. Kg3 {[%emt 0:00:57] [#]} Ke6 $1 {[%emt 0:00:43]} 47. Kf3 {[%emt 0:00:26]} Rc3 {[%emt 0:00:38]} 48. Ke4 {[%emt 0:00:36]} (48. Ke2 $142) 48... f5+ {[%emt 0:00:23]} 49. Kf3 {[%emt 0:00:04]} Rxd3+ {[%emt 0:00:20]} 50. Rxd3 {[%emt 0:00:01]} Kd5 {[%emt 0:00:11]} 51. Rd1 {[%emt 0:01:01]} Rc6 {[%emt 0:00:20]} 52. Rg1 {[%emt 0:00:25]} Rc3+ {[%emt 0:00:50]} 53. Ke2 {[%emt 0:00:04]} Rxb3 {[%emt 0:00:29]} 54. f3 {[%emt 0:00:13]} (54. Rxg6 $142 Ke4 55. Re6+ Kxf4 56. Rg6) 54... Re3+ {[%emt 0:00:20]} 55. Kd2 {[%emt 0:01:26]} Rxf3 {[%emt 0:00:40]} 56. Rxg6 {[%emt 0:00:07]} Rxf4 {[%emt 0:00:35]} 57. Rxb6 {[%emt 0:00:32]} Rxh4 {[%emt 0:00:29]} 58. Rb5+ {[%emt 0:00:04]} Ke4 {[%emt 0:00:07]} 59. Rxa5 {[%emt 0:00:03]} Rh2+ {[%emt 0:00:18]} 60. Ke1 {[%emt 0:00:05]} Ra2 {[%emt 0:00:27]} 61. Ra8 {[%emt 0:00:19]} h4 {[%emt 0:00:50]} 62. a5 {[%emt 0:00:57]} h3 {[%emt 0:00:16]} 63. a6 {[%emt 0:00:51]} h2 {[%emt 0:00:15]} 64. Rh8 {[%emt 0:00:09] [#]} h1=Q+ {[%emt 0:00:21]} 0-1

[Event "Satka Autumn 2017"]
[Site "Satka"]
[Date "2017.09.16"]
[Round "5"]
[White "Nosacheva, Mariya"]
[Black "Kovanova, Baira"]
[Result "1-0"]
[ECO "C88"]
[WhiteElo "2077"]
[BlackElo "2368"]
[Annotator "ChessBase"]
[PlyCount "103"]
[EventDate "2017.??.??"]
[EventType "swiss"]
[EventCountry "RUS"]
[SourceTitle "playchess.com"]
[Source "ChessBase"]
[SourceQuality "1"]
[TimeControl "5400+30"]

1. e4 {[%emt 0:00:00]} e5 {[%emt 0:00:03]} 2. Nf3 {[%emt 0:00:00]} Nc6 {[%emt 0:00:04]} 3. Bb5 {[%emt 0:00:00]} a6 {[%emt 0:00:07]} 4. Ba4 {[%emt 0:00:02]} Nf6 {[%emt 0:00:04]} 5. O-O {[%emt 0:00:23]} Be7 {[%emt 0:00:03]} 6. Re1 {[%emt 0:00:10]} b5 {[%emt 0:00:05]} 7. Bb3 {[%emt 0:00:08]} d6 {[%emt 0:00:02]} 8. a4 {[%emt 0:00:26]} b4 {[%emt 0:02:39]} 9. a5 {[%emt 0:01:25]} O-O {[%emt 0:00:19]} 10. d3 {[%emt 0:00:09]} Rb8 {[%emt 0:02:26]} 11. Nbd2 {[%emt 0:02:55]} Be6 {[%emt 0:09:37]} 12. Nc4 {[%emt 0:01:46]} h6 {[%emt 0:01:23]} 13. c3 {[%emt 0:05:42]} Nd7 {[%emt 0:06:09]} 14. d4 {[%emt 0:08:55]} exd4 {[%emt 0:05:18]} 15. cxd4 {[%emt 0:00:55]} Bg4 {[%emt 0:05:58]} 16. Ba4 {[%emt 0:06:07]} Na7 {[%emt 0:00:33]} 17. Ne3 {[%emt 0:08:21]} Bh5 {[%emt 0:01:48]} 18. Nd5 {[%emt 0:01:15]} c6 {[%emt 0:03:09]} 19. Nxe7+ {[%emt 0:07:34]} Qxe7 {[%emt 0:02:05]} 20. Bf4 {[%emt 0:00:52]} Qf6 {[%emt 0:04:27]} 21. Bg3 {[%emt 0:03:45]} Nb5 {[%emt 0:00:46]} 22. e5 {[%emt 0:02:06]} Qd8 {[%emt 0:07:45]} 23. exd6 {[%emt 0:04:07]} Qxa5 {[%emt 0:13:23]} 24. Qd3 {[%emt 0:10:26]} Bg6 {[%emt 0:04:26]} 25. Qd2 {[%emt 0:00:40]} Bh5 {[%emt 0:11:00]} 26. Ne5 {[%emt 0:10:05]} Nxe5 {[%emt 0:04:36]} 27. dxe5 {[%emt 0:00:09]} c5 {[%emt 0:05:33]} 28. f4 {[%emt 0:00:54]} Nd4 {[%emt 0:02:55]} 29. Bf2 {[%emt 0:00:57]} Qb6 {[%emt 0:03:07]} 30. Bxd4 {[%emt 0:02:10]} cxd4 {[%emt 0:00:02]} 31. Qd3 {[%emt 0:04:04]} a5 {[%emt 0:02:50]} 32. Kh1 {[%emt 0:02:40]} Bg6 {[%emt 0:00:37]} 33. f5 {[%emt 0:00:32]} Bh7 {[%emt 0:00:10]} 34. Rac1 {[%emt 0:02:00]} Qd8 {[%emt 0:01:31]} 35. Rc7 {[%emt 0:03:25]} Qg5 {[%emt 0:01:47]} 36. Rf1 {[%emt 0:01:00]} b3 {[%emt 0:00:16]} 37. h3 {[%emt 0:01:46]} Rb4 {[%emt 0:00:32]} 38. Bd7 {[%emt 0:00:42]} a4 {[%emt 0:00:28]} 39. Ra7 {[%emt 0:01:01]} Qd8 {[%emt 0:01:13]} 40. Rxa4 {[%emt 0:01:13]} Rb6 {[%emt 0:00:13]} 41. Ra7 {[%emt 0:00:08]} Qh4 {[%emt 0:00:21]} 42. Rfa1 {[%emt 0:01:35]} Qf4 {[%emt 0:00:37]} 43. Ra8 {[%emt 0:01:17]} Rbb8 {[%emt 0:00:08]} 44. Rxb8 {[%emt 0:00:13]} Rxb8 {[%emt 0:00:02]} 45. Qxb3 {[%emt 0:00:08]} Rf8 {[%emt 0:00:14]} 46. Qd5 {[%emt 0:00:19]} d3 {[%emt 0:00:46]} 47. e6 {[%emt 0:01:24]} fxe6 {[%emt 0:00:53]} 48. Bxe6+ {[%emt 0:01:54]} Kh8 {[%emt 0:00:07]} 49. d7 {[%emt 0:00:02]} Qc7 {[%emt 0:01:33]} 50. Qxd3 {[%emt 0:00:12]} Qb6 {[%emt 0:00:28]} 51. b3 {[%emt 0:00:24]} Qc7 {[%emt 0:00:30]} 52. Qd2 {[%emt 0:00:32]} 1-0